[Event "NJSK 2024 Cm"]
[Site "Groningen, Netherlands"]
[Date "2024.05.03"]
[Round "7.1"]
[White "Hardeman, Imara"]
[Black "Roebers, Bregje"]
[Result "0-1"]
[TimeControl "90min/40moves + 30min + 30sec/move"]
[WhiteElo "1676"]
[BlackElo "1829"]

1. e4 {[%clk 01:30:57]} {[%emt 00:00:03]} d6 {[%clk 01:30:57]} {[%emt
00:00:04]} 2. d4 {[%clk 01:31:24]} {[%emt 00:00:02]} Nf6 {[%clk 01:31:21]}
{[%emt 00:00:06]} 3. Nc3 {[%clk 01:31:52]} {[%emt 00:00:03]} g6 {[%clk
01:31:41]} {[%emt 00:00:10]} 4. f4 {[%clk 01:32:19]} {[%emt 00:00:03]} Bg7
{[%clk 01:31:55]} {[%emt 00:00:16]} 5. Nf3 {[%clk 01:32:32]} {[%emt 00:00:16]}
O-O {[%clk 01:31:52]} {[%emt 00:00:33]} 6. Be3 {[%clk 01:32:45]} {[%emt
00:00:17]} Ng4 {[%clk 01:27:17]} {[%emt 00:05:05]} 7. Qd2 {[%clk 01:26:25]}
{[%emt 00:06:51]} e5 {[%clk 01:18:52]} {[%emt 00:08:55]} 8. fxe5 {[%clk
01:18:52]} {[%emt 00:08:02]} dxe5 {[%clk 01:17:10]} {[%emt 00:02:13]} 9. d5
{[%clk 01:18:03]} {[%emt 00:01:19]} Nxe3 {[%clk 01:16:08]} {[%emt 00:01:32]} 10.
Qxe3 {[%clk 01:18:19]} {[%emt 00:00:13]} Nd7 {[%clk 01:13:03]} {[%emt
00:03:35]} 11. Bd3 {[%clk 01:15:35]} {[%emt 00:03:14]} f5 {[%clk 01:07:14]}
{[%emt 00:06:19]} 12. Qf2 {[%clk 01:01:34]} {[%emt 00:14:31]} Qe7 {[%clk
00:58:21]} {[%emt 00:09:24]} 13. O-O-O {[%clk 00:52:47]} {[%emt 00:09:17]} Nc5
{[%clk 00:40:22]} {[%emt 00:18:29]} 14. Bc4 {[%clk 00:45:10]} {[%emt 00:08:06]}
Kh8 {[%clk 00:36:26]} {[%emt 00:04:26]} 15. Qe3 {[%clk 00:41:10]} {[%emt
00:04:30]} a6 {[%clk 00:30:46]} {[%emt 00:06:11]} 16. a3 {[%clk 00:36:04]}
{[%emt 00:05:36]} Qd6 {[%clk 00:27:35]} {[%emt 00:03:40]} 17. Rhe1 {[%clk
00:33:07]} {[%emt 00:03:27]} Nd7 {[%clk 00:24:10]} {[%emt 00:03:55]} 18. Ng5
{[%clk 00:29:09]} {[%emt 00:04:28]} Nb6 {[%clk 00:22:38]} {[%emt 00:02:02]} 19.
Bb3 {[%clk 00:28:08]} {[%emt 00:01:32]} h6 {[%clk 00:20:24]} {[%emt 00:02:43]}
20. Nf3 {[%clk 00:24:06]} {[%emt 00:04:33]} Nd7 {[%clk 00:19:14]} {[%emt
00:01:40]} 21. h4 {[%clk 00:21:31]} {[%emt 00:03:05]} Nf6 {[%clk 00:16:04]}
{[%emt 00:03:39]} 22. Qe2 {[%clk 00:16:52]} {[%emt 00:05:09]} f4 {[%clk
00:14:36]} {[%emt 00:01:59]} 23. Qd3 {[%clk 00:14:55]} {[%emt 00:02:27]} Ng4
{[%clk 00:13:18]} {[%emt 00:01:48]} 24. Qe2 {[%clk 00:15:05]} {[%emt 00:00:20]}
Bd7 {[%clk 00:11:25]} {[%emt 00:02:22]} 25. Rd2 {[%clk 00:13:36]} {[%emt
00:01:59]} b5 {[%clk 00:09:47]} {[%emt 00:02:08]} 26. Nd1 {[%clk 00:12:28]}
{[%emt 00:01:39]} a5 {[%clk 00:09:13]} {[%emt 00:01:03]} 27. Nf2 {[%clk
00:11:09]} {[%emt 00:01:49]} a4 {[%clk 00:08:01]} {[%emt 00:01:42]} 28. Ba2
{[%clk 00:10:17]} {[%emt 00:01:22]} b4 {[%clk 00:07:45]} {[%emt 00:00:47]} 29.
Qd3 {[%clk 00:07:51]} {[%emt 00:02:56]} Nxf2 {[%clk 00:06:07]} {[%emt
00:02:07]} 30. Rxf2 {[%clk 00:07:52]} {[%emt 00:00:29]} Qc5 {[%clk 00:06:03]}
{[%emt 00:00:34]} 31. Qd2 {[%clk 00:05:19]} {[%emt 00:03:04]} bxa3 {[%clk
00:06:15]} {[%emt 00:00:17]} 32. bxa3 {[%clk 00:04:46]} {[%emt 00:01:03]} Qxa3+
{[%clk 00:06:35]} {[%emt 00:00:10]} 33. Kd1 {[%clk 00:02:30]} {[%emt 00:02:46]}
Qxa2 {[%clk 00:06:58]} {[%emt 00:00:07]} 34. Ke2 {[%clk 00:02:32]} {[%emt
00:00:28]} Bb5+ {[%clk 00:07:20]} {[%emt 00:00:08]} 35. Kd1 {[%clk 00:02:36]}
{[%emt 00:00:26]} a3 {[%clk 00:06:59]} {[%emt 00:00:51]} 0-1

[Event "NJSK 2024 Cm"]
[Site "Groningen, Netherlands"]
[Date "2024.05.03"]
[Round "7.2"]
[White "Regterschot, Frederieke"]
[Black "Jorritsma, Eli Alia"]
[Result "1-0"]
[TimeControl "90min/40moves + 30min + 30sec/move"]
[WhiteElo "1292"]
[BlackElo "1777"]

1. d4 {[%clk 01:30:58]} g6 {[%clk 01:30:49]} {[%emt 00:00:12]} 2. e4 {[%clk
01:31:23]} {[%emt 00:00:06]} Bg7 {[%clk 01:31:13]} {[%emt 00:00:06]} 3. Nc3
{[%clk 01:31:39]} {[%emt 00:00:14]} d6 {[%clk 01:31:31]} {[%emt 00:00:11]} 4.
Be3 {[%clk 01:31:34]} {[%emt 00:00:35]} Nd7 {[%clk 01:31:34]} {[%emt 00:00:27]}
5. Bc4 {[%clk 01:31:16]} {[%emt 00:00:48]} a6 {[%clk 01:30:39]} {[%emt
00:01:26]} 6. a4 {[%clk 01:29:18]} {[%emt 00:02:28]} Ngf6 {[%clk 01:25:13]}
{[%emt 00:05:55]} 7. f3 {[%clk 01:27:17]} {[%emt 00:02:31]} O-O {[%clk
01:24:39]} {[%emt 00:01:05]} 8. Nge2 {[%clk 01:26:41]} {[%emt 00:01:06]} c5
{[%clk 01:20:07]} {[%emt 00:05:01]} 9. O-O {[%clk 01:23:35]} {[%emt 00:03:36]}
Nb6 {[%clk 01:17:29]} {[%emt 00:03:08]} 10. Ba2 {[%clk 01:22:46]} {[%emt
00:01:18]} Qc7 {[%clk 01:14:55]} {[%emt 00:03:04]} 11. Qe1 {[%clk 01:14:01]}
{[%emt 00:09:15]} c4 {[%clk 01:09:48]} {[%emt 00:05:39]} 12. b3 {[%clk
01:09:32]} {[%emt 00:04:59]} Be6 {[%clk 01:02:51]} {[%emt 00:07:26]} 13. d5
{[%clk 01:08:24]} {[%emt 00:01:38]} Bc8 {[%clk 01:02:35]} {[%emt 00:00:46]} 14.
Bxb6 {[%clk 01:04:00]} {[%emt 00:04:54]} Qxb6+ {[%clk 01:02:57]} {[%emt
00:00:08]} 15. Kh1 {[%clk 01:03:48]} {[%emt 00:00:42]} cxb3 {[%clk 01:01:55]}
{[%emt 00:01:32]} 16. cxb3 {[%clk 01:02:16]} {[%emt 00:02:02]} Nd7 {[%clk
01:00:37]} {[%emt 00:01:48]} 17. Rc1 {[%clk 01:01:32]} {[%emt 00:01:14]} Nc5
{[%clk 01:00:21]} {[%emt 00:00:46]} 18. Qd1 {[%clk 01:00:37]} {[%emt 00:01:26]}
f5 {[%clk 00:53:33]} {[%emt 00:07:17]} 19. Rb1 {[%clk 00:55:50]} {[%emt
00:05:17]} fxe4 {[%clk 00:50:59]} {[%emt 00:03:03]} 20. Nxe4 {[%clk 00:53:06]}
{[%emt 00:03:14]} Bf5 {[%clk 00:49:38]} {[%emt 00:01:50]} 21. N2g3 {[%clk
00:51:52]} {[%emt 00:01:45]} Bxe4 {[%clk 00:46:32]} {[%emt 00:03:36]} 22. fxe4
{[%clk 00:50:37]} {[%emt 00:01:45]} Be5 {[%clk 00:43:03]} {[%emt 00:03:59]} 23.
Rxf8+ {[%clk 00:50:18]} {[%emt 00:00:49]} Rxf8 {[%clk 00:43:20]} {[%emt
00:00:13]} 24. b4 {[%clk 00:50:04]} {[%emt 00:00:45]} Bxg3 {[%clk 00:40:56]}
{[%emt 00:02:54]} 25. bxc5 {[%clk 00:49:46]} {[%emt 00:00:47]} Qxc5 {[%clk
00:41:05]} {[%emt 00:00:22]} 26. hxg3 {[%clk 00:43:49]} {[%emt 00:06:26]} Qf2
{[%clk 00:39:28]} {[%emt 00:02:08]} 27. Bb3 {[%clk 00:40:29]} {[%emt 00:03:51]}
Qxg3 {[%clk 00:38:49]} {[%emt 00:01:08]} 28. Qc2 {[%clk 00:38:42]} {[%emt
00:02:17]} Rf2 {[%clk 00:36:20]} {[%emt 00:02:58]} 29. Qc8+ {[%clk 00:39:00]}
{[%emt 00:00:12]} Kg7 {[%clk 00:36:27]} {[%emt 00:00:23]} 30. Qh3 {[%clk
00:39:23]} {[%emt 00:00:07]} Qf4 {[%clk 00:34:57]} {[%emt 00:02:00]} 31. Qc3+
{[%clk 00:34:25]} {[%emt 00:05:28]} Kf7 {[%clk 00:33:15]} {[%emt 00:02:13]} 32.
Qd3 {[%clk 00:34:02]} {[%emt 00:00:53]} Qg4 {[%clk 00:31:06]} {[%emt 00:02:39]}
33. Qh3 {[%clk 00:31:57]} {[%emt 00:02:35]} Qxh3+ {[%clk 00:26:08]} {[%emt
00:05:28]} 34. gxh3 {[%clk 00:32:20]} {[%emt 00:00:07]} Re2 {[%clk 00:26:34]}
{[%emt 00:00:04]} 35. Bd1 {[%clk 00:30:34]} {[%emt 00:02:16]} Rxe4 {[%clk
00:26:49]} {[%emt 00:00:15]} 36. Bc2 {[%clk 00:30:18]} {[%emt 00:00:46]} Rd4
{[%clk 00:25:12]} {[%emt 00:02:06]} 37. Rxb7 {[%clk 00:30:21]} {[%emt
00:00:28]} Rd2 {[%clk 00:23:52]} {[%emt 00:01:49]} 38. Rb2 {[%clk 00:30:33]}
{[%emt 00:00:19]} Kf6 {[%clk 00:22:53]} {[%emt 00:01:29]} 39. Ra2 {[%clk
00:29:00]} {[%emt 00:02:04]} Rxd5 {[%clk 00:22:23]} {[%emt 00:00:59]} 40. a5
{[%clk 00:28:59]} {[%emt 00:00:30]} Rd2 {[%clk 00:21:46]} {[%emt 00:01:07]} 41.
Bb3 {[%clk 00:27:19]} {[%emt 00:02:11]} Rd3 {[%clk 00:18:51]} {[%emt 00:03:25]}
42. Bc4 {[%clk 00:25:37]} {[%emt 00:02:12]} Rxh3+ {[%clk 00:17:57]} {[%emt
00:01:24]} 43. Kg2 {[%clk 00:26:04]} {[%emt 00:00:03]} Rc3 {[%clk 00:16:25]}
{[%emt 00:02:02]} 44. Bxa6 {[%clk 00:26:28]} {[%emt 00:00:06]} Ke6 {[%clk
00:16:02]} {[%emt 00:00:53]} 45. Bb7 {[%clk 00:26:32]} {[%emt 00:00:26]} Rc5
{[%clk 00:12:39]} {[%emt 00:03:52]} 46. a6 {[%clk 00:25:50]} {[%emt 00:01:13]}
1-0

[Event "NJSK 2024 Cm"]
[Site "Groningen, Netherlands"]
[Date "2024.05.03"]
[Round "7.3"]
[White "Luong, Thao"]
[Black "Elangkumaran, Anumitra"]
[Result "0-1"]
[TimeControl "90min/40moves + 30min + 30sec/move"]
[WhiteElo "1687"]
[BlackElo "1605"]

1. e4 {[%clk 01:30:58]} {[%emt 00:00:02]} e5 {[%clk 01:30:58]} {[%emt
00:00:03]} 2. Nf3 {[%clk 01:31:22]} {[%emt 00:00:06]} Nc6 {[%clk 01:31:21]}
{[%emt 00:00:07]} 3. Bc4 {[%clk 01:31:44]} {[%emt 00:00:08]} Bc5 {[%clk
01:31:44]} {[%emt 00:00:07]} 4. c3 {[%clk 01:32:08]} {[%emt 00:00:06]} Nf6
{[%clk 01:32:09]} {[%emt 00:00:05]} 5. d4 {[%clk 01:32:31]} {[%emt 00:00:06]}
exd4 {[%clk 01:32:31]} {[%emt 00:00:09]} 6. cxd4 {[%clk 01:32:56]} {[%emt
00:00:05]} Bb4+ {[%clk 01:32:49]} {[%emt 00:00:12]} 7. Nc3 {[%clk 01:33:19]}
{[%emt 00:00:07]} Nxe4 {[%clk 01:32:50]} {[%emt 00:00:29]} 8. O-O {[%clk
01:33:30]} {[%emt 00:00:17]} Bxc3 {[%clk 01:32:55]} {[%emt 00:00:25]} 9. d5
{[%clk 01:33:39]} {[%emt 00:00:22]} Bf6 {[%clk 01:32:56]} {[%emt 00:00:29]} 10.
dxc6 {[%clk 01:33:01]} {[%emt 00:01:08]} bxc6 {[%clk 01:32:20]} {[%emt
00:01:06]} 11. Nd4 {[%clk 01:28:34]} {[%emt 00:04:56]} O-O {[%clk 01:23:17]}
{[%emt 00:09:34]} 12. Bf4 {[%clk 01:18:14]} {[%emt 00:10:50]} Ng5 {[%clk
01:11:54]} {[%emt 00:11:54]} 13. Re1 {[%clk 01:00:34]} {[%emt 00:18:09]} c5
{[%clk 01:06:14]} {[%emt 00:06:11]} 14. Nb5 {[%clk 00:58:04]} {[%emt 00:02:59]}
d6 {[%clk 01:03:14]} {[%emt 00:03:30]} 15. Qd2 {[%clk 00:53:48]} {[%emt
00:04:44]} Be6 {[%clk 00:54:30]} {[%emt 00:09:17]} 16. Bb3 {[%clk 00:46:59]}
{[%emt 00:07:18]} h6 {[%clk 00:48:14]} {[%emt 00:06:46]} 17. Bxg5 {[%clk
00:34:41]} {[%emt 00:12:48]} hxg5 {[%clk 00:45:59]} {[%emt 00:02:45]} 18. Bxe6
{[%clk 00:34:27]} {[%emt 00:00:44]} fxe6 {[%clk 00:46:01]} {[%emt 00:00:27]} 19.
Rxe6 {[%clk 00:33:45]} {[%emt 00:01:12]} Qd7 {[%clk 00:40:42]} {[%emt
00:05:50]} 20. Qd5 {[%clk 00:32:45]} {[%emt 00:01:30]} Kh8 {[%clk 00:35:17]}
{[%emt 00:05:55]} 21. Re3 {[%clk 00:23:57]} {[%emt 00:09:19]} g4 {[%clk
00:29:00]} {[%emt 00:06:47]} 22. Rb3 {[%clk 00:06:50]} {[%emt 00:17:36]} c6
{[%clk 00:25:15]} {[%emt 00:04:16]} 23. Qxd6 {[%clk 00:06:08]} {[%emt
00:01:11]} Qxd6 {[%clk 00:25:37]} {[%emt 00:00:08]} 24. Nxd6 {[%clk 00:06:31]}
{[%emt 00:00:08]} Bd4 {[%clk 00:25:05]} {[%emt 00:01:01]} 25. Rf1 {[%clk
00:04:48]} {[%emt 00:02:13]} Rf6 {[%clk 00:23:58]} {[%emt 00:01:38]} 26. Ne4
{[%clk 00:03:47]} {[%emt 00:01:30]} Rf4 {[%clk 00:23:04]} {[%emt 00:01:25]} 27.
Ng5 {[%clk 00:02:56]} {[%emt 00:01:20]} Re8 {[%clk 00:22:14]} {[%emt 00:01:20]}
28. h3 {[%clk 00:02:27]} {[%emt 00:01:00]} g3 {[%clk 00:19:32]} {[%emt
00:03:12]} 29. Rxg3 {[%clk 00:02:36]} {[%emt 00:00:21]} Bxf2+ {[%clk 00:19:37]}
{[%emt 00:00:24]} 30. Rxf2 {[%clk 00:02:16]} {[%emt 00:00:49]} Re1+ {[%clk
00:19:54]} {[%emt 00:00:15]} 31. Kh2 {[%clk 00:02:21]} {[%emt 00:00:25]} Rxf2
{[%clk 00:20:07]} {[%emt 00:00:16]} 32. Rb3 {[%clk 00:02:22]} {[%emt 00:00:30]}
Rf8 {[%clk 00:19:51]} {[%emt 00:00:46]} 33. Rb7 {[%clk 00:02:35]} {[%emt
00:00:16]} Re2 {[%clk 00:18:27]} {[%emt 00:01:54]} 34. Rxa7 {[%clk 00:02:29]}
{[%emt 00:00:35]} Rxb2 {[%clk 00:18:25]} {[%emt 00:00:33]} 35. Ra6 {[%clk
00:02:49]} {[%emt 00:00:11]} Rc8 {[%clk 00:17:47]} {[%emt 00:01:07]} 36. Nf7+
{[%clk 00:02:09]} {[%emt 00:01:10]} Kh7 {[%clk 00:17:38]} {[%emt 00:00:40]} 37.
Ne5 {[%clk 00:02:23]} {[%emt 00:00:15]} Rf8 {[%clk 00:16:08]} {[%emt 00:02:01]}
38. Nxc6 {[%clk 00:02:14]} {[%emt 00:00:38]} Rff2 {[%clk 00:15:56]} {[%emt
00:00:43]} 39. Ra5 {[%clk 00:01:55]} {[%emt 00:00:49]} Rxg2+ {[%clk 00:15:45]}
{[%emt 00:00:40]} 40. Kh1 {[%clk 00:02:17]} {[%emt 00:00:08]} Rgc2 {[%clk
00:15:43]} {[%emt 00:00:33]} 41. Rxc5 {[%clk 00:02:05]} {[%emt 00:00:42]} Rb1#
{[%clk 00:15:59]} {[%emt 00:00:13]} 0-1

[Event "NJSK 2024 Cm"]
[Site "Groningen, Netherlands"]
[Date "2024.05.03"]
[Round "7.4"]
[White "Koorevaar, Sarah-Joy"]
[Black "Esvelt, Klio"]
[Result "1-0"]
[TimeControl "90min/40moves + 30min + 30sec/move"]
[WhiteElo "1544"]
[BlackElo "1353"]

1. d4 {[%clk 01:30:59]} d5 {[%clk 01:30:58]} {[%emt 00:00:02]} 2. c4 {[%clk
01:31:25]} {[%emt 00:00:05]} c6 {[%clk 01:31:19]} {[%emt 00:00:08]} 3. Nf3
{[%clk 01:31:52]} {[%emt 00:00:03]} Nf6 {[%clk 01:31:42]} {[%emt 00:00:08]} 4.
g3 {[%clk 01:32:19]} {[%emt 00:00:03]} Bf5 {[%clk 01:31:25]} {[%emt 00:00:46]}
5. Bg2 {[%clk 01:32:43]} {[%emt 00:00:06]} e6 {[%clk 01:31:41]} {[%emt
00:00:14]} 6. O-O {[%clk 01:33:10]} {[%emt 00:00:03]} Nbd7 {[%clk 01:31:45]}
{[%emt 00:00:25]} 7. Nc3 {[%clk 01:33:34]} {[%emt 00:00:08]} Qc7 {[%clk
01:31:12]} {[%emt 00:01:02]} 8. Re1 {[%clk 01:32:58]} {[%emt 00:01:07]} h6
{[%clk 01:31:03]} {[%emt 00:00:35]} 9. c5 {[%clk 01:32:03]} {[%emt 00:01:29]}
g5 {[%clk 01:31:06]} {[%emt 00:00:26]} 10. Qb3 {[%clk 01:30:39]} {[%emt
00:01:55]} g4 {[%clk 01:30:06]} {[%emt 00:01:29]} 11. Bf4 {[%clk 01:30:51]}
{[%emt 00:00:18]} Qc8 {[%clk 01:29:46]} {[%emt 00:00:50]} 12. Ne5 {[%clk
01:31:03]} {[%emt 00:00:18]} Nxe5 {[%clk 01:29:56]} {[%emt 00:00:19]} 13. Bxe5
{[%clk 01:31:25]} {[%emt 00:00:09]} Bg7 {[%clk 01:30:17]} {[%emt 00:00:09]} 14.
f3 {[%clk 01:17:42]} {[%emt 00:14:13]} h5 {[%clk 01:29:18]} {[%emt 00:01:29]}
15. e4 {[%clk 01:17:09]} {[%emt 00:01:03]} dxe4 {[%clk 01:27:33]} {[%emt
00:02:15]} 16. fxe4 {[%clk 01:17:32]} {[%emt 00:00:06]} Bg6 {[%clk 01:27:48]}
{[%emt 00:00:15]} 17. Rf1 {[%clk 01:17:51]} {[%emt 00:00:11]} Qd8 {[%clk
01:27:35]} {[%emt 00:00:41]} 18. Qxb7 {[%clk 01:18:08]} {[%emt 00:00:16]} h4
{[%clk 01:27:11]} {[%emt 00:00:54]} 19. Bxf6 {[%clk 01:18:02]} {[%emt
00:00:36]} Bxf6 {[%clk 01:27:13]} {[%emt 00:00:29]} 20. Rxf6 {[%clk 01:18:14]}
{[%emt 00:00:18]} hxg3 {[%clk 01:26:40]} {[%emt 00:01:03]} 21. Rd1 {[%clk
01:11:12]} {[%emt 00:07:31]} gxh2+ {[%clk 01:26:57]} {[%emt 00:00:13]} 22. Kh1
{[%clk 01:11:09]} {[%emt 00:00:33]} g3 {[%clk 01:24:52]} {[%emt 00:02:35]} 23.
e5 {[%clk 01:10:31]} {[%emt 00:01:08]} O-O {[%clk 01:24:28]} {[%emt 00:00:54]}
24. Qxc6 {[%clk 01:10:12]} {[%emt 00:00:50]} Rb8 {[%clk 01:24:17]} {[%emt
00:00:41]} 25. b3 {[%clk 01:04:00]} {[%emt 00:06:43]} Bh5 {[%clk 01:24:07]}
{[%emt 00:00:32]} 26. Bf3 {[%clk 01:03:04]} {[%emt 00:01:33]} Bxf3+ {[%clk
01:24:09]} {[%emt 00:00:28]} 27. Qxf3 {[%clk 01:03:30]} {[%emt 00:00:05]} Rb4
{[%clk 01:23:24]} {[%emt 00:01:15]} 28. Qxg3+ {[%clk 01:03:40]} {[%emt
00:00:18]} Kh7 {[%clk 01:23:46]} {[%emt 00:00:08]} 29. Qxh2+ {[%clk 01:03:46]}
{[%emt 00:00:25]} Kg8 {[%clk 01:23:58]} {[%emt 00:00:18]} 30. Rg1# {[%clk
01:04:12]} {[%emt 00:00:03]} 1-0

[Event "NJSK 2024 Cm"]
[Site "Groningen, Netherlands"]
[Date "2024.05.03"]
[Round "7.5"]
[White "Jermin, Ayleanna"]
[Black "Vermeulen, Ilona"]
[Result "0-1"]
[TimeControl "90min/40moves + 30min + 30sec/move"]
[WhiteElo "1249"]
[BlackElo "1427"]

1. e4 {[%clk 01:30:57]} {[%emt 00:00:03]} d5 {[%clk 01:30:52]} {[%emt
00:00:09]} 2. exd5 {[%clk 01:30:15]} {[%emt 00:01:11]} Nf6 {[%clk 01:31:05]}
{[%emt 00:00:17]} 3. Bc4 {[%clk 01:28:52]} {[%emt 00:01:54]} Nxd5 {[%clk
01:30:35]} {[%emt 00:01:00]} 4. Qf3 {[%clk 01:25:59]} {[%emt 00:03:23]} e6
{[%clk 01:29:12]} {[%emt 00:01:53]} 5. Ne2 {[%clk 01:20:09]} {[%emt 00:06:21]}
Nc6 {[%clk 01:25:56]} {[%emt 00:03:45]} 6. Bb5 {[%clk 01:13:00]} {[%emt
00:07:39]} Bd7 {[%clk 01:18:10]} {[%emt 00:08:15]} 7. Bxc6 {[%clk 01:09:38]}
{[%emt 00:03:51]} Bxc6 {[%clk 01:17:14]} {[%emt 00:01:27]} 8. Qh5 {[%clk
01:05:57]} {[%emt 00:04:11]} Qf6 {[%clk 01:09:54]} {[%emt 00:07:50]} 9. d3
{[%clk 00:59:01]} {[%emt 00:07:27]} g6 {[%clk 01:02:49]} {[%emt 00:07:35]} 10.
Qg4 {[%clk 00:55:55]} {[%emt 00:03:36]} Bb4+ {[%clk 00:57:42]} {[%emt
00:05:37]} 11. c3 {[%clk 00:54:23]} {[%emt 00:02:02]} Be7 {[%clk 00:55:59]}
{[%emt 00:01:50]} 12. Qg3 {[%clk 00:48:21]} {[%emt 00:06:54]} Bd6 {[%clk
00:52:30]} {[%emt 00:03:59]} 13. Qg5 {[%clk 00:44:49]} {[%emt 00:04:02]} Qxg5
{[%clk 00:52:08]} {[%emt 00:00:52]} 14. Bxg5 {[%clk 00:45:01]} {[%emt
00:00:18]} Be7 {[%clk 00:51:45]} {[%emt 00:00:53]} 15. Bd2 {[%clk 00:44:06]}
{[%emt 00:01:26]} O-O-O {[%clk 00:50:22]} {[%emt 00:01:52]} 16. a4 {[%clk
00:41:24]} {[%emt 00:03:13]} e5 {[%clk 00:46:24]} {[%emt 00:04:27]} 17. a5
{[%clk 00:40:11]} {[%emt 00:01:44]} Nf6 {[%clk 00:45:08]} {[%emt 00:01:46]} 18.
a6 {[%clk 00:39:48]} {[%emt 00:00:53]} Rxd3 {[%clk 00:40:40]} {[%emt 00:04:57]}
19. axb7+ {[%clk 00:39:10]} {[%emt 00:01:08]} Kxb7 {[%clk 00:40:53]} {[%emt
00:00:18]} 20. Be3 {[%clk 00:38:25]} {[%emt 00:01:14]} a6 {[%clk 00:38:54]}
{[%emt 00:02:30]} 21. Na3 {[%clk 00:36:31]} {[%emt 00:02:23]} Bxg2 {[%clk
00:36:14]} {[%emt 00:03:10]} 22. Rg1 {[%clk 00:35:06]} {[%emt 00:01:56]} Bxa3
{[%clk 00:32:00]} {[%emt 00:04:44]} 23. Rxg2 {[%clk 00:32:37]} {[%emt
00:02:58]} Be7 {[%clk 00:29:41]} {[%emt 00:02:25]} 24. Rg5 {[%clk 00:30:48]}
{[%emt 00:02:43]} Nd7 {[%clk 00:27:07]} {[%emt 00:03:04]} 25. Rg4 {[%clk
00:30:29]} {[%emt 00:00:48]} Nb6 {[%clk 00:26:24]} {[%emt 00:01:13]} 26. Ra5
{[%clk 00:28:58]} {[%emt 00:02:01]} f6 {[%clk 00:25:34]} {[%emt 00:01:21]} 27.
b4 {[%clk 00:28:26]} {[%emt 00:01:01]} Rhd8 {[%clk 00:24:39]} {[%emt 00:01:25]}
28. Kf1 {[%clk 00:26:32]} {[%emt 00:02:24]} Rd1+ {[%clk 00:24:25]} {[%emt
00:00:44]} 29. Kg2 {[%clk 00:26:51]} {[%emt 00:00:11]} h5 {[%clk 00:23:54]}
{[%emt 00:01:01]} 30. Rxg6 {[%clk 00:26:41]} {[%emt 00:00:39]} Nd5 {[%clk
00:22:52]} {[%emt 00:01:33]} 31. b5 {[%clk 00:25:27]} {[%emt 00:01:45]} Nxe3+
{[%clk 00:22:45]} {[%emt 00:00:36]} 32. fxe3 {[%clk 00:25:21]} {[%emt
00:00:35]} axb5 {[%clk 00:23:05]} {[%emt 00:00:11]} 33. Rxb5+ {[%clk 00:25:33]}
{[%emt 00:00:18]} Kc6 {[%clk 00:23:20]} {[%emt 00:00:16]} 34. Rb2 {[%clk
00:25:09]} {[%emt 00:00:53]} R1d2 {[%clk 00:22:19]} {[%emt 00:01:31]} 35. Rxd2
{[%clk 00:25:11]} {[%emt 00:00:27]} Rxd2 {[%clk 00:22:44]} {[%emt 00:00:06]} 36.
Kf3 {[%clk 00:25:16]} {[%emt 00:00:25]} e4+ {[%clk 00:22:15]} {[%emt 00:00:59]}
37. Kf2 {[%clk 00:25:30]} {[%emt 00:00:16]} Kd5 {[%emt 00:01:21]} 38. Rh6
{[%clk 00:25:28]} {[%emt 00:00:31]} Kc4 {[%clk 00:21:40]} {[%emt 00:00:15]} 39.
Rxh5 {[%clk 00:25:07]} {[%emt 00:00:50]} Kd3 {[%clk 00:22:01]} {[%emt
00:00:10]} 40. Rd5+ {[%clk 00:25:14]} {[%emt 00:00:23]} Kc2 {[%clk 00:22:16]}
{[%emt 00:00:15]} 41. Rxd2+ {[%clk 00:25:15]} {[%emt 00:00:29]} Kxd2 {[%clk
00:22:43]} {[%emt 00:00:04]} 42. c4 {[%clk 00:25:21]} {[%emt 00:00:24]} Bc5
{[%clk 00:22:35]} {[%emt 00:00:39]} 43. Ng3 {[%clk 00:24:57]} {[%emt 00:00:53]}
Bxe3 {[%clk 00:22:50]} {[%emt 00:00:15]} 44. Kg2 {[%clk 00:25:14]} {[%emt
00:00:13]} Kd3 {[%emt 00:00:32]} 45. Nf5 {[%clk 00:24:50]} {[%emt 00:00:53]}
Bg5 {[%clk 00:22:47]} {[%emt 00:00:29]} 46. c5 {[%clk 00:25:05]} {[%emt
00:00:19]} e3 {[%clk 00:22:57]} {[%emt 00:00:20]} 47. Nxe3 {[%clk 00:25:00]}
{[%emt 00:00:35]} Kxe3 {[%clk 00:23:22]} {[%emt 00:00:06]} 48. Kg3 {[%clk
00:25:20]} {[%emt 00:00:09]} f5 {[%clk 00:23:32]} {[%emt 00:00:20]} 49. h3
{[%clk 00:25:32]} {[%emt 00:00:18]} f4 {[%clk 00:23:49]} {[%emt 00:00:14]} 50.
Kg2 {[%clk 00:25:50]} {[%emt 00:00:12]} Bh4 {[%clk 00:24:03]} {[%emt 00:00:15]}
51. Kf1 {[%clk 00:26:06]} {[%emt 00:00:14]} Kf3 {[%clk 00:24:16]} {[%emt
00:00:18]} 52. c6 {[%clk 00:26:21]} {[%emt 00:00:15]} Kg3 {[%clk 00:24:34]}
{[%emt 00:00:11]} 53. Kg1 {[%clk 00:26:26]} {[%emt 00:00:25]} Kxh3 {[%clk
00:24:49]} {[%emt 00:00:15]} 54. Kf1 {[%clk 00:26:29]} {[%emt 00:00:28]} Kg4
{[%clk 00:25:11]} {[%emt 00:00:08]} 55. Kg2 {[%clk 00:26:39]} {[%emt 00:00:19]}
Bg3 {[%clk 00:25:27]} {[%emt 00:00:14]} 56. Kg1 {[%clk 00:26:54]} {[%emt
00:00:15]} Kf5 {[%clk 00:25:41]} {[%emt 00:00:17]} 57. Kg2 {[%clk 00:27:09]}
{[%emt 00:00:15]} Ke5 {[%clk 00:26:06]} {[%emt 00:00:04]} 58. Kf3 {[%clk
00:27:18]} {[%emt 00:00:20]} Kd5 {[%clk 00:26:28]} {[%emt 00:00:09]} 59. Ke2
{[%clk 00:27:32]} {[%emt 00:00:16]} Kxc6 {[%clk 00:26:48]} {[%emt 00:00:10]} 60.
Kd3 {[%clk 00:27:47]} {[%emt 00:00:14]} Kd5 {[%clk 00:27:08]} {[%emt 00:00:11]}
61. Kd2 {[%clk 00:27:52]} {[%emt 00:00:25]} Kd4 {[%clk 00:27:28]} {[%emt
00:00:11]} 62. Kd1 {[%clk 00:28:06]} {[%emt 00:00:15]} Ke3 {[%clk 00:27:30]}
{[%emt 00:00:28]} 63. Kc2 {[%clk 00:28:08]} {[%emt 00:00:28]} f3 {[%clk
00:27:54]} {[%emt 00:00:06]} 64. Kc1 {[%clk 00:28:30]} {[%emt 00:00:08]} f2
{[%clk 00:28:15]} {[%emt 00:00:09]} 65. Kb2 {[%clk 00:28:52]} {[%emt 00:00:08]}
f1=Q {[%emt 00:00:15]} 66. Ka2 {[%clk 00:29:08]} {[%emt 00:00:10]} Qa6+ {[%clk
00:28:49]} {[%emt 00:00:16]} 67. Kb2 {[%clk 00:29:20]} {[%emt 00:00:17]} Be5+
{[%clk 00:29:09]} {[%emt 00:00:10]} 68. Kc2 {[%clk 00:29:32]} {[%emt 00:00:19]}
Qd3+ {[%clk 00:29:34]} {[%emt 00:00:04]} 69. Kc1 {[%clk 00:30:18]} {[%emt
00:01:34]} Qd2+ {[%clk 00:30:04]} {[%emt 00:00:09]} 70. Kb1 {[%clk 00:30:35]}
{[%emt 00:00:13]} Qb2# {[%clk 00:30:28]} {[%emt 00:00:07]} 0-1